fUST/lending_fUST_20250318
["ID","MTS","AMOUNT","RATE_DAILY","PERIOD"]
[356319280,1742255433627,-500.0,8.219e-05,2]
[356319281,1742255433638,-500.0,8.219e-05,2]
[356319282,1742255433648,-500.0,8.219e-05,2]
[356319283,1742255433658,-500.0,8.219e-05,2]
[356319284,1742255433668,-500.0,8.219e-05,2]
[356319285,1742255433678,-500.0,8.219e-05,2]
[356319286,1742255433688,-500.0,8.219e-05,2]
[356319287,1742255433698,-500.0,8.219e-05,2]
[356319288,1742255433708,-500.0,8.219e-05,2]
[356319289,1742255433717,-500.0,8.219e-05,2]
[356319290,1742255433727,-500.0,8.219e-05,2]
[356319291,1742255433737,-539.56,8.219e-05,2]
[356319292,1742255433747,-500.0,8.219e-05,2]
[356319293,1742255433757,-500.0,8.219e-05,2]
[356319294,1742255433766,-500.0,8.219e-05,2]
[356319295,1742255433776,-500.0,8.219e-05,2]
[356319296,1742255433786,-500.0,8.219e-05,2]
[356319297,1742255433796,-500.0,8.219e-05,2]
[356319298,1742255433806,-500.0,8.219e-05,2]
[356319299,1742255433816,-1071.8,8.219e-05,2]
[356319300,1742255433827,-3302.43,8.219e-05,2]
[356319301,1742255433837,-500.0,8.219e-05,2]
[356319302,1742255433848,-500.0,8.219e-05,2]
[356319303,1742255433861,-2017.79,8.219e-05,2]
[356319304,1742255433871,-500.0,8.219e-05,2]
[356319305,1742255433881,-580.14156837,8.219e-05,2]
[356319306,1742255433891,-255.24972345,8.219e-05,2]
[356319307,1742255433901,-1882.21,8.219e-05,2]
[356319308,1742255433912,-500.0,8.219e-05,2]
[356319309,1742255433922,-1013.77,8.219e-05,2]
[356319310,1742255433934,-500.0,8.219e-05,2]
[356319311,1742255434194,-86679.96413466,8.219e-05,2]
[356319328,1742255437899,-7002.87586534,8.219e-05,2]
[356319329,1742255437909,-500.0,8.219e-05,2]
[356319330,1742255437918,-633.75,8.219e-05,2]
[356319331,1742255437929,-500.0,8.219e-05,2]
[356319332,1742255437938,-500.0,8.219e-05,2]
[356319333,1742255437948,-500.0,8.219e-05,2]
[356319334,1742255437958,-553.89,8.219e-05,2]
[356319335,1742255437967,-500.0,8.219e-05,2]
[356319336,1742255437977,-991.02,8.219e-05,2]
[356319337,1742255437986,-500.0,8.219e-05,2]
[356319338,1742255437995,-502.70261033,8.219e-05,2]
[356319339,1742255438005,-500.0,8.219e-05,2]
[356319340,1742255438014,-2210.34,8.219e-05,2]
[356319341,1742255438025,-327.67789295,8.219e-05,2]
[356319342,1742255438034,-500.0,8.219e-05,2]
[356319343,1742255438044,-500.0,8.219e-05,2]
[356319344,1742255438053,-500.0,8.219e-05,2]
[356319345,1742255438063,-500.0,8.219e-05,2]
[356319346,1742255438072,-500.0,8.219e-05,2]
[356319347,1742255438081,-1206.34,8.219e-05,2]
[356319348,1742255438091,-500.0,8.219e-05,2]
[356319349,1742255438100,-589.4,8.219e-05,2]
[356319350,1742255438110,-500.0,8.219e-05,2]
[356319351,1742255438120,-500.0,8.219e-05,2]
[356319352,1742255438130,-526.6225375,8.219e-05,2]
[356319353,1742255438140,-500.0,8.219e-05,2]
[356319354,1742255438150,-500.0,8.219e-05,2]
[356319355,1742255438159,-631.57,8.219e-05,2]
[356319356,1742255438168,-500.0,8.219e-05,2]
[356319357,1742255438178,-3132.71,8.219e-05,2]
[356319358,1742255438187,-500.0,8.219e-05,2]
[356319359,1742255438197,-500.0,8.219e-05,2]
[356319360,1742255438206,-964.65,8.219e-05,2]
[356319361,1742255438215,-964.65,8.219e-05,2]
[356319362,1742255438224,-500.0,8.219e-05,2]
[356319363,1742255438234,-964.65,8.219e-05,2]
[356319364,1742255438243,-964.65,8.219e-05,2]
[356319365,1742255438252,-964.65,8.219e-05,2]
[356319366,1742255438262,-546.04443159,8.219e-05,2]
[356319367,1742255438271,-964.65,8.219e-05,2]
[356319368,1742255438281,-964.65,8.219e-05,2]
[356319369,1742255438291,-964.65,8.219e-05,2]
[356319370,1742255438300,-383.4714993,8.219e-05,2]
[356319394,1742255440072,-581.1785007,8.219e-05,2]
[356319395,1742255440082,-964.65,8.219e-05,2]
[356319396,1742255440092,-964.65,8.219e-05,2]
[356319397,1742255440101,-5719.37,8.219e-05,2]
[356319398,1742255440110,-964.65,8.219e-05,2]
[356319399,1742255440119,-964.65,8.219e-05,2]
[356319400,1742255440129,-964.65,8.219e-05,2]
[356319401,1742255440139,-964.65,8.219e-05,2]
[356319402,1742255440151,-964.65,8.219e-05,2]
[356319403,1742255440161,-964.65,8.219e-05,2]
[356319404,1742255440170,-964.65,8.219e-05,2]
[356319405,1742255440180,-964.65,8.219e-05,2]
[356319406,1742255440190,-500.0,8.219e-05,2]
[356319407,1742255440200,-964.65,8.219e-05,2]
[356319408,1742255440210,-964.65,8.219e-05,2]
[356319409,1742255440219,-964.65,8.219e-05,2]
[356319410,1742255440228,-964.65,8.219e-05,2]
[356319411,1742255440239,-964.68346319,8.219e-05,2]
[356319412,1742255440248,-500.0,8.219e-05,2]
[356319413,1742255440257,-500.0,8.219e-05,2]
[356319414,1742255440267,-500.0,8.219e-05,2]
[356319415,1742255440276,-5274.85,8.219e-05,2]
[356319416,1742255440286,-200.01847683,8.219e-05,2]
[356319417,1742255440296,-500.0,8.219e-05,2]
[356319418,1742255440305,-500.0,8.219e-05,2]
[356319419,1742255440315,-500.0,8.219e-05,2]
[356319420,1742255440324,-500.05888911,8.219e-05,2]
[356319421,1742255440333,-503.38,8.219e-05,2]
[356319422,1742255440343,-522.60890009,8.219e-05,2]
[356319423,1742255440352,-500.0,8.219e-05,2]
[356319424,1742255440362,-500.0,8.219e-05,2]
[356319425,1742255440372,-2424.02,8.219e-05,2]
[356319426,1742255440381,-500.0,8.219e-05,2]
[356319427,1742255440392,-500.0,8.219e-05,2]
[356319428,1742255440402,-500.0,8.219e-05,2]
[356319429,1742255440411,-500.0,8.219e-05,2]
[356319430,1742255440420,-500.0,8.219e-05,2]
[356319431,1742255440430,-510.09916511,8.219e-05,2]
[356319432,1742255440439,-500.0,8.219e-05,2]
[356319433,1742255440448,-500.0,8.219e-05,2]
[356319434,1742255440458,-500.0,8.219e-05,2]
[356319435,1742255440467,-500.0,8.219e-05,2]
[356319436,1742255440476,-985.71,8.219e-05,2]
[356319437,1742255440486,-500.0,8.219e-05,2]
[356319438,1742255440495,-549.21,8.219e-05,2]
[356319439,1742255440505,-7332.6,8.219e-05,2]
[356319440,1742255440514,-500.0,8.219e-05,2]
[356319441,1742255440523,-1332.19,8.219e-05,2]
[356319442,1742255440533,-500.0,8.219e-05,2]
[356319443,1742255440543,-500.0,8.219e-05,2]
[356319444,1742255440552,-500.0,8.219e-05,2]
[356319445,1742255440562,-500.0,8.219e-05,2]
[356319446,1742255440571,-500.0,8.219e-05,2]
[356319447,1742255440581,-500.0,8.219e-05,2]
[356319448,1742255440590,-500.0,8.219e-05,2]
[356319449,1742255440599,-500.0,8.219e-05,2]
[356319450,1742255440608,-512.73,8.219e-05,2]
[356319451,1742255440617,-500.0,8.219e-05,2]
[356319452,1742255440627,-500.0,8.219e-05,2]
[356319453,1742255440637,-910.78,8.219e-05,2]
[356319454,1742255440647,-1535.74508146,8.219e-05,2]
[356319455,1742255440657,-500.0,8.219e-05,2]
[356319456,1742255440667,-526.17,8.219e-05,2]
[356319457,1742255440677,-500.0,8.219e-05,2]
[356319458,1742255440686,-500.0,8.219e-05,2]
[356319459,1742255440695,-1463.07,8.219e-05,2]
[356319460,1742255440705,-500.0,8.219e-05,2]
[356319461,1742255440715,-500.0,8.219e-05,2]
[356319462,1742255440725,-500.0,8.219e-05,2]
[356319463,1742255440735,-500.0,8.219e-05,2]
[356319464,1742255440744,-500.0,8.219e-05,2]
[356319465,1742255440753,-500.0,8.219e-05,2]
[356319466,1742255440763,-832.09,8.219e-05,2]
[356319467,1742255440773,-500.0,8.219e-05,2]
[356319468,1742255440783,-500.0,8.219e-05,2]
[356319469,1742255440792,-500.0,8.219e-05,2]
[356319470,1742255440802,-500.0,8.219e-05,2]
[356319471,1742255440812,-531.68,8.219e-05,2]
[356319472,1742255440822,-500.0,8.219e-05,2]
[356319473,1742255440831,-7697.12,8.219e-05,2]
[356319474,1742255440840,-500.0,8.219e-05,2]
[356319475,1742255440851,-500.0,8.219e-05,2]
[356319476,1742255440862,-500.0,8.219e-05,2]
[356319477,1742255440871,-500.0,8.219e-05,2]
[356319478,1742255440881,-6758.62,8.219e-05,2]
[356319479,1742255440890,-500.0,8.219e-05,2]
[356319480,1742255440900,-738.14,8.219e-05,2]
[356319481,1742255440909,-719.18,8.219e-05,2]
[356319482,1742255440919,-500.0,8.219e-05,2]
[356319483,1742255440929,-500.0,8.219e-05,2]
[356319484,1742255440938,-500.0,8.219e-05,2]
[356319485,1742255440948,-500.0,8.219e-05,2]
[356319486,1742255440958,-500.0,8.219e-05,2]
[356319487,1742255440968,-500.0,8.219e-05,2]
[356319488,1742255440978,-500.0,8.219e-05,2]
[356319489,1742255440988,-807.92,8.219e-05,2]
[356319490,1742255440998,-532.77,8.219e-05,2]
[356319491,1742255441008,-500.0,8.219e-05,2]
[356319492,1742255441018,-514.83976532,8.219e-05,2]
[356319493,1742255441027,-1076.78,8.219e-05,2]
[356319494,1742255441037,-500.0,8.219e-05,2]
[356319495,1742255441047,-500.0,8.219e-05,2]
[356319496,1742255441056,-500.0,8.219e-05,2]
[356319497,1742255441067,-500.0,8.219e-05,2]
[356319498,1742255441077,-500.0,8.219e-05,2]
[356319499,1742255441087,-500.0,8.219e-05,2]
[356319500,1742255441098,-500.0,8.219e-05,2]
[356319501,1742255441108,-500.0,8.219e-05,2]
[356319502,1742255441120,-500.0,8.219e-05,2]
[356319503,1742255441129,-712.03,8.219e-05,2]
[356319504,1742255441139,-500.0,8.219e-05,2]
[356319505,1742255441149,-325.04,8.219e-05,2]
[356319506,1742255441158,-500.0,8.219e-05,2]
[356319507,1742255441168,-839.2,8.219e-05,2]
[356319508,1742255441178,-597.12,8.219e-05,2]
[356319509,1742255441187,-500.0,8.219e-05,2]
[356319510,1742255441198,-500.0,8.219e-05,2]
[356319511,1742255441208,-499.95,8.219e-05,2]
[356319512,1742255441218,-1554.81,8.219e-05,2]
[356319513,1742255441227,-500.0,8.219e-05,2]
[356319514,1742255441237,-546.54,8.219e-05,2]
[356319515,1742255441246,-497.23148292,8.219e-05,2]
[356319516,1742255441255,-500.0,8.219e-05,2]
[356319517,1742255441265,-5273.7,8.219e-05,2]
[356319518,1742255441275,-500.0,8.219e-05,2]
[356319519,1742255441285,-500.0,8.219e-05,2]
[356319520,1742255441294,-500.0,8.219e-05,2]
[356319521,1742255441303,-3550.56,8.219e-05,2]
[356319522,1742255441313,-1802.05,8.219e-05,2]
[356319523,1742255441323,-500.0,8.219e-05,2]
[356319524,1742255441333,-500.0,8.219e-05,2]
[356319525,1742255441343,-3553.52,8.219e-05,2]
[356319526,1742255441352,-508.39488865,8.219e-05,2]
[356319527,1742255441361,-500.0,8.219e-05,2]
[356319528,1742255441371,-500.0,8.219e-05,2]
[356319529,1742255441380,-500.0,8.219e-05,2]
[356319530,1742255441389,-500.0,8.219e-05,2]
[356319531,1742255441399,-1670.31,8.219e-05,2]
[356319532,1742255441409,-736.57,8.219e-05,2]
[356319533,1742255441418,-3217.67,8.219e-05,2]
[356319534,1742255441427,-500.0,8.219e-05,2]
[356319535,1742255441436,-500.0,8.219e-05,2]
[356319536,1742255441445,-500.0,8.219e-05,2]
[356319537,1742255441456,-500.0,8.219e-05,2]
[356319538,1742255441465,-500.0,8.219e-05,2]
[356319539,1742255441474,-1651.21,8.219e-05,2]
[356319540,1742255441484,-500.0,8.219e-05,2]
[356319541,1742255441494,-457.2802518,8.238e-05,2]
[356319542,1742255441504,-623.16220398,8.282e-05,2]
[356319543,1742255441514,-199.38379133,8.473e-05,2]
[356319544,1742255441524,-187.0368658,8.48e-05,2]
[356319545,1742255441533,-155.55286,8.48e-05,2]
[356319546,1742255441543,-1119.9294358,8.48e-05,2]
[356319547,1742255441553,-151.0,8.491e-05,2]
[356319548,1742255441562,-254.936966,8.491e-05,2]
[356319549,1742255441571,-151.0,8.492e-05,2]
[356319550,1742255441581,-474.66703743,8.493e-05,2]
[356319551,1742255441591,-542.96,8.493e-05,2]
[356319552,1742255441600,-500.0,8.493e-05,2]
[356319553,1742255441611,-500.0,8.493e-05,2]
[356319554,1742255441621,-529.65,8.493e-05,2]
[356319555,1742255441630,-563.24,8.493e-05,2]
[356319556,1742255441640,-500.0,8.493e-05,2]
[356319557,1742255441650,-500.0,8.493e-05,2]
[356319558,1742255441659,-500.0,8.493e-05,2]
[356319559,1742255441669,-500.0,8.493e-05,2]
[356319560,1742255441678,-500.0,8.493e-05,2]
[356319561,1742255441688,-500.0,8.493e-05,2]
[356319562,1742255441698,-500.0,8.493e-05,2]
[356319563,1742255441707,-500.0,8.493e-05,2]
[356319564,1742255441719,-500.0,8.493e-05,2]
[356319565,1742255441728,-500.0,8.493e-05,2]
[356319566,1742255441738,-500.0,8.493e-05,2]
[356319567,1742255441747,-500.0,8.493e-05,2]
[356319568,1742255441756,-519.73664915,8.493e-05,2]
[356319569,1742255441767,-500.0,8.493e-05,2]
[356319570,1742255441776,-500.0,8.493e-05,2]
[356319571,1742255441786,-500.0,8.493e-05,2]
[356319572,1742255441795,-500.0,8.493e-05,2]
[356319573,1742255441805,-500.0,8.493e-05,2]
[356319574,1742255441815,-500.0,8.493e-05,2]
[356319575,1742255441825,-500.0,8.493e-05,2]
[356319576,1742255441835,-500.0,8.493e-05,2]
[356319577,1742255441844,-500.0,8.493e-05,2]
[356319578,1742255441856,-500.0,8.493e-05,2]
[356319579,1742255441866,-500.0,8.493e-05,2]
[356319580,1742255441876,-500.0,8.493e-05,2]
[356319581,1742255441885,-500.0,8.493e-05,2]
[356319582,1742255441896,-500.0,8.493e-05,2]
[356319583,1742255441905,-500.0,8.493e-05,2]
[356319584,1742255441916,-500.0,8.493e-05,2]
[356319585,1742255441926,-603.62,8.493e-05,2]
[356319586,1742255441935,-500.0,8.493e-05,2]
[356319587,1742255441947,-500.0,8.493e-05,2]
[356319588,1742255441958,-593.4,8.493e-05,2]
[356319589,1742255441967,-418.85932456,8.493e-05,2]
[356319590,1742255441977,-500.0,8.493e-05,2]
[356319591,1742255441986,-500.0,8.493e-05,2]
[356319592,1742255441996,-531.970745,8.493e-05,2]
[356319593,1742255442006,-500.0,8.493e-05,2]
[356319594,1742255442016,-500.0,8.493e-05,2]
[356319595,1742255442025,-725.06,8.493e-05,2]
[356319596,1742255442034,-500.0,8.493e-05,2]
[356319597,1742255442044,-500.0,8.493e-05,2]
[356319598,1742255442054,-856.59,8.493e-05,2]
[356319599,1742255442063,-500.0,8.493e-05,2]
[356319600,1742255442072,-500.0,8.493e-05,2]
[356319601,1742255442082,-500.0,8.493e-05,2]
[356319602,1742255442092,-500.0,8.493e-05,2]
[356319603,1742255442102,-500.0,8.493e-05,2]
[356319604,1742255442112,-500.0,8.493e-05,2]
[356319605,1742255442122,-500.0,8.493e-05,2]
[356319606,1742255442132,-500.0,8.493e-05,2]
[356319607,1742255442142,-500.0,8.493e-05,2]
[356319608,1742255442152,-500.0,8.493e-05,2]
[356319609,1742255442162,-500.0,8.493e-05,2]
[356319610,1742255442171,-500.0,8.493e-05,2]
[356319615,1742255442354,-500.0,8.493e-05,2]
[356319616,1742255442364,-500.0,8.493e-05,2]
[356319617,1742255442374,-500.0,8.493e-05,2]
[356319618,1742255442384,-500.0,8.493e-05,2]
[356319619,1742255442394,-500.0,8.493e-05,2]
[356319620,1742255442405,-500.0,8.493e-05,2]
[356319621,1742255442414,-500.0,8.493e-05,2]
[356319622,1742255442424,-500.0,8.493e-05,2]
[356319623,1742255442434,-628.87,8.493e-05,2]
[356319624,1742255442444,-508.83,8.493e-05,2]
[356319625,1742255442453,-500.0,8.493e-05,2]
[356319626,1742255442463,-500.0,8.493e-05,2]
[356319627,1742255442473,-500.0,8.493e-05,2]
[356319628,1742255442483,-530.40158502,8.493e-05,2]
[356319629,1742255442492,-500.0,8.493e-05,2]
[356319630,1742255442502,-500.0,8.493e-05,2]
[356319631,1742255442512,-500.0,8.493e-05,2]
[356319632,1742255442522,-500.0,8.493e-05,2]
[356319633,1742255442531,-500.0,8.493e-05,2]
[356319634,1742255442542,-500.0,8.493e-05,2]
[356319635,1742255442552,-500.0,8.493e-05,2]
[356319636,1742255442561,-500.0,8.493e-05,2]
[356319637,1742255442571,-500.0,8.493e-05,2]
[356319638,1742255442580,-500.0,8.493e-05,2]
[356319639,1742255442590,-500.0,8.493e-05,2]
[356319640,1742255442600,-500.0,8.493e-05,2]
[356319641,1742255442610,-575.747745,8.493e-05,2]
[356319642,1742255442620,-500.0,8.493e-05,2]
[356319643,1742255442630,-315.36,8.493e-05,2]
[356319644,1742255442639,-500.0,8.493e-05,2]
[356319645,1742255442650,-500.0,8.493e-05,2]
[356319646,1742255442659,-500.0,8.493e-05,2]
[356319647,1742255442669,-500.0,8.493e-05,2]
[356319648,1742255442679,-500.0,8.493e-05,2]
[356319649,1742255442689,-500.0,8.493e-05,2]
[356319650,1742255442698,-299.59,8.493e-05,2]
[356319651,1742255442708,-500.0,8.493e-05,2]
[356319652,1742255442717,-500.0,8.493e-05,2]
[356319653,1742255442727,-500.0,8.493e-05,2]
[356319654,1742255442737,-539.56,8.493e-05,2]
[356319655,1742255442747,-500.0,8.493e-05,2]
[356319656,1742255442756,-500.0,8.493e-05,2]
[356319657,1742255442766,-500.0,8.493e-05,2]
[356319658,1742255442777,-500.0,8.493e-05,2]
[356319659,1742255442787,-1071.8,8.493e-05,2]
[356319660,1742255442797,-500.0,8.493e-05,2]
[356319661,1742255442807,-2017.79,8.493e-05,2]
[356319662,1742255442817,-1882.21,8.493e-05,2]
[356319663,1742255442827,-500.0,8.493e-05,2]
[356319664,1742255442837,-1013.77,8.493e-05,2]
[356319665,1742255442847,-528.4,8.493e-05,2]
[356319666,1742255442861,-7314.43756299,8.493e-05,2]
[356319667,1742255442885,-2433.58273462,8.493e-05,2]
[356320244,1742255494373,-201.22690047,7.919e-05,2]
[356320246,1742255523192,-150.0,7.918e-05,2]
[356320452,1742256632069,-478.72946397,7.909e-05,2]
[356320453,1742256632086,-1579.27053603,7.909e-05,2]
[356320454,1742256632098,-2632.8092092,7.909e-05,2]
[356320455,1742256632112,-202.17990805,7.909e-05,2]
[356320456,1742256632126,-355.74615768,7.918e-05,2]
[356320457,1742256632137,-300.0,7.918e-05,2]
[356320458,1742256632149,-276.04286557,7.919e-05,2]
[356320459,1742256632225,-221522.73023396,7.919e-05,2]
[356320460,1742256632238,-577.15503395,8.219e-05,2]
[356320461,1742256632249,-500.0,8.219e-05,2]
[356320462,1742256632260,-510.81193693,8.219e-05,2]
[356320463,1742256632271,-505.65812512,8.219e-05,2]
[356320464,1742256632282,-500.0,8.219e-05,2]
[356320465,1742256632297,-500.0,8.219e-05,2]
[356320466,1742256632308,-500.0,8.219e-05,2]
[356320467,1742256632319,-500.0,8.219e-05,2]
[356320469,1742256632332,-500.0,8.219e-05,2]
[356320471,1742256632344,-500.0,8.219e-05,2]
[356320473,1742256632356,-500.0,8.219e-05,2]
[356320475,1742256632366,-500.0,8.219e-05,2]
[356320477,1742256632378,-500.0,8.219e-05,2]
[356320479,1742256632389,-500.0,8.219e-05,2]
[356320481,1742256632399,-500.0,8.219e-05,2]
[356320483,1742256632410,-802.24,8.219e-05,2]
[356320485,1742256632420,-500.0,8.219e-05,2]
[356320487,1742256632431,-500.0,8.219e-05,2]
[356320489,1742256632441,-500.0,8.219e-05,2]
[356320491,1742256632454,-500.0,8.219e-05,2]
[356320493,1742256632464,-500.0,8.219e-05,2]
[356320495,1742256632474,-430.16975999,8.219e-05,2]
[356320498,1742256632494,-69.83024001,8.219e-05,2]
[356320500,1742256632506,-500.0,8.219e-05,2]
[356320502,1742256632516,-500.0,8.219e-05,2]
[356320504,1742256632526,-500.0,8.219e-05,2]
[356320506,1742256632543,-430.16975999,8.219e-05,2]
[356320528,1742256637908,-69.83024001,8.219e-05,2]
[356320531,1742256637918,-500.0,8.219e-05,2]
[356320533,1742256637928,-500.0,8.219e-05,2]
[356320534,1742256637936,-500.0,8.219e-05,2]
[356320537,1742256637946,-506.25,8.219e-05,2]
[356320538,1742256637956,-500.0,8.219e-05,2]
[356320541,1742256637966,-747.97,8.219e-05,2]
[356320543,1742256637975,-403.13476008,8.219e-05,2]
[356320552,1742256640283,-475.42523992,8.219e-05,2]
[356320553,1742256640293,-500.0,8.219e-05,2]
[356320554,1742256640304,-500.0,8.219e-05,2]
[356320555,1742256640314,-500.0,8.219e-05,2]
[356320556,1742256640324,-500.0,8.219e-05,2]
[356320557,1742256640333,-500.0,8.219e-05,2]
[356320558,1742256640343,-500.0,8.219e-05,2]
[356320559,1742256640353,-500.0,8.219e-05,2]
[356320560,1742256640363,-500.0,8.219e-05,2]
[356320561,1742256640374,-500.0,8.219e-05,2]
[356320562,1742256640383,-500.0,8.219e-05,2]
[356320563,1742256640394,-500.0,8.219e-05,2]
[356320564,1742256640404,-500.0,8.219e-05,2]
[356320565,1742256640414,-500.0,8.219e-05,2]
[356320566,1742256640424,-500.0,8.219e-05,2]
[356320567,1742256640435,-500.0,8.219e-05,2]
[356320568,1742256640445,-500.0,8.219e-05,2]
[356320569,1742256640455,-500.0,8.219e-05,2]
[356320570,1742256640464,-500.0,8.219e-05,2]
[356320571,1742256640475,-500.0,8.219e-05,2]
[356320572,1742256640484,-500.0,8.219e-05,2]
[356320573,1742256640495,-500.0,8.219e-05,2]
[356320574,1742256640505,-500.0,8.219e-05,2]
[356320575,1742256640515,-500.0,8.219e-05,2]
[356320576,1742256640524,-500.0,8.219e-05,2]
[356320577,1742256640534,-500.0,8.219e-05,2]
[356320578,1742256640544,-500.0,8.219e-05,2]
[356320579,1742256640558,-500.0,8.219e-05,2]
[356320580,1742256640568,-500.0,8.219e-05,2]
[356320581,1742256640578,-214.03251902,8.219e-05,2]
[356320582,1742256640588,-500.0,8.219e-05,2]
[356320583,1742256640597,-528.93,8.219e-05,2]
[356320584,1742256640607,-500.0,8.219e-05,2]
[356320585,1742256640618,-666.52,8.219e-05,2]
[356320586,1742256640627,-500.0,8.219e-05,2]
[356320587,1742256640638,-500.0,8.219e-05,2]
[356320588,1742256640648,-273.78,8.219e-05,2]
[356320589,1742256640658,-500.0,8.219e-05,2]
[356320590,1742256640668,-500.0,8.219e-05,2]
[356320591,1742256640678,-500.0,8.219e-05,2]
[356320592,1742256640689,-500.0,8.219e-05,2]
[356320593,1742256640699,-500.0,8.219e-05,2]
[356320594,1742256640708,-500.0,8.219e-05,2]
[356320595,1742256640719,-500.0,8.219e-05,2]
[356320596,1742256640728,-500.0,8.219e-05,2]
[356320597,1742256640738,-500.0,8.219e-05,2]
[356320598,1742256640748,-500.0,8.219e-05,2]
[356320599,1742256640757,-261.09925806,8.219e-05,2]
[356320600,1742256640766,-500.0,8.219e-05,2]
[356320601,1742256640777,-500.0,8.219e-05,2]
[356320602,1742256640787,-500.0,8.219e-05,2]
[356320603,1742256640798,-633.07796586,8.219e-05,2]
[356320604,1742256640808,-500.0,8.219e-05,2]
[356320605,1742256640818,-500.0,8.219e-05,2]
[356320606,1742256640827,-500.0,8.219e-05,2]
[356320607,1742256640839,-500.0,8.219e-05,2]
[356320608,1742256640848,-500.0,8.219e-05,2]
[356320609,1742256640859,-553.26,8.219e-05,2]
[356320610,1742256640868,-500.0,8.219e-05,2]
[356320611,1742256640879,-500.0,8.219e-05,2]
[356320612,1742256640889,-516.33,8.219e-05,2]
[356320613,1742256640899,-500.0,8.219e-05,2]
[356320614,1742256640909,-500.0,8.219e-05,2]
[356320615,1742256640918,-579.38593053,8.219e-05,2]
[356320616,1742256640928,-500.0,8.219e-05,2]
[356320617,1742256640937,-500.0,8.219e-05,2]
[356320618,1742256640946,-500.0,8.219e-05,2]
[356320619,1742256640956,-500.0,8.219e-05,2]
[356320620,1742256640965,-500.0,8.219e-05,2]
[356320621,1742256640974,-500.0,8.219e-05,2]
[356320622,1742256640983,-557.09,8.219e-05,2]
[356320623,1742256640993,-500.0,8.219e-05,2]
[356320624,1742256641004,-500.0,8.219e-05,2]
[356320625,1742256641014,-599.54,8.219e-05,2]
[356320626,1742256641024,-3296.25,8.219e-05,2]
[356320627,1742256641033,-500.0,8.219e-05,2]
[356320628,1742256641043,-1838.09,8.219e-05,2]
[356320629,1742256641053,-500.0,8.219e-05,2]
[356320630,1742256641063,-500.0,8.219e-05,2]
[356320631,1742256641073,-669.84,8.219e-05,2]
[356320632,1742256641082,-929.28,8.219e-05,2]
[356320633,1742256641092,-500.0,8.219e-05,2]
[356320634,1742256641102,-2004.82,8.219e-05,2]
[356320635,1742256641111,-500.0,8.219e-05,2]
[356320636,1742256641122,-500.0,8.219e-05,2]
[356320637,1742256641132,-1012.23,8.219e-05,2]
[356320638,1742256641143,-500.0,8.219e-05,2]
[356320639,1742256641156,-500.0,8.219e-05,2]
[356320640,1742256641166,-94443.02,8.219e-05,2]
[356320641,1742256641176,-613.12,8.219e-05,2]
[356320642,1742256641185,-500.0,8.219e-05,2]
[356320643,1742256641196,-500.0,8.219e-05,2]
[356320644,1742256641205,-500.0,8.219e-05,2]
[356320645,1742256641216,-500.0,8.219e-05,2]
[356320646,1742256641226,-1167.8,8.219e-05,2]
[356320647,1742256641235,-2306.64,8.219e-05,2]
[356320648,1742256641245,-500.0,8.219e-05,2]
[356320649,1742256641255,-3200.64,8.219e-05,2]
[356320650,1742256641267,-667.75,8.219e-05,2]
[356320651,1742256641277,-627.34,8.219e-05,2]
[356320652,1742256641287,-5469.84,8.219e-05,2]
[356320653,1742256641298,-500.0,8.219e-05,2]
[356320654,1742256641307,-500.0,8.219e-05,2]
[356320655,1742256641317,-502.20490292,8.219e-05,2]
[356320656,1742256641326,-500.0,8.219e-05,2]
[356320657,1742256641336,-5729.86,8.219e-05,2]
[356320658,1742256641345,-604.04,8.219e-05,2]
[356320659,1742256641354,-500.0,8.219e-05,2]
[356320660,1742256641364,-500.0,8.219e-05,2]
[356320661,1742256641374,-500.0,8.219e-05,2]